{"text_format":"2","workbook":"xlsx","n_sheets":1,"sheets":["Vagyonkimutatás"],"not_rendered":{"charts":0,"images":0,"macros":0,"external_links":0,"defined_names":0,"comments":0,"pivot_tables":0},"unopened":[],"bounds":{"document_bytes":16777216,"sheet_cells":100000,"run_cost":"one","rows_first":2000,"rows_last":500,"rows_between":2000,"halvings":0,"cell_chars":16384,"cell_head_chars":4096},"cells_cut":0,"cells_raw":0,"read":"whole","date_system":"1900"}

{"sheet":"Vagyonkimutatás","index":0,"n_rows":39,"n_cols":10,"rows_kept":39,"cut":false,"hidden":false,"merged":[[31,7,31,8],[32,0,32,1],[32,7,32,8],[15,7,15,8],[11,7,11,8],[16,7,16,8],[17,0,17,1],[20,0,20,1],[25,0,25,1],[1,0,1,9],[3,0,3,1],[3,7,3,9],[4,0,4,1],[4,7,4,8],[38,0,38,1],[38,7,38,8],[37,0,37,1],[37,7,37,8],[36,0,36,1],[36,7,36,8],[33,0,33,1],[34,0,34,1],[35,0,35,1],[29,0,29,1],[30,0,30,1],[31,0,31,1]]}
[{"$nulls":9},"Előterjesztés 2. melléklete"]
["Budapest Hegyvidék XII. kerület Német Nemzetiségi Önkormányzat 2025.12.31."]
[{"$nulls":9},"adatok forintban"]
["ESZKÖZÖK",null,"Forgalomképtelen törzsvagyon","Nemzetgazdasági szempontból kiemelt jelentőségű törzsvagyon","Korlátozottan forgalomképes vagyon","Üzleti vagyon","Összesen","FORRÁSOK"]
["A) Nemzeti vagyonba tartozó befektetett eszközök",null,{"$f":"C7+C6","v":0},{"$f":"D7+D6","v":0},0,{"$f":"F7+F6","v":250000},{"$f":"G6+G7+G13+G17","v":250000},"G) Saját tőke",null,{"$f":"J6+J7+J8+J9+J10+J11","v":1695777}]
[null,"I. Immateriális javak",{"$nulls":4},{"$f":"SUM(C6:F6)","v":0},null,"I. Nemzeti vagyon induláskori értéke"]
[null,"II. Tárgyi eszközök",null,{"$f":"SUM(D8:D12)","v":0},null,{"$f":"SUM(F8:F12)","v":250000},{"$f":"SUM(G8:G11)","v":250000},null,"II. Nemzeti vagyon változásai"]
[null,"     1. Ingatlanok és kapcsolódó vagyoni értékű jogok",null,null,null,0,{"$f":"SUM(C8:F8)","v":0},null,"III. Egyéb eszközök induláskori értéke és változásai"]
[null,"     2. Gépek, berendezések, felszerelések, járművek",null,null,null,250000,{"$f":"SUM(D9:F9)","v":250000},null,"IV. Felhalmozott eredmény",250000]
[null,"     3. Tenyészállatok",null,null,null,0,{"$f":"SUM(D10:F10)","v":0},null,"V. Eszközök értékhelyesbítésének forrása"]
[null,"     4. Beruházások, felújítások",null,null,null,0,0,null,"VI. Mérleg szerinti eredmény",1445777]
[null,"     5. Tárgyi eszközök értékhelyesbítése",null,null,null,0,0,"H) Kötelezettségek",null,{"$f":"J13+J14+J15","v":0}]
[null,"III. Befektetett pénzügyi eszközök",null,null,null,{"$f":"F14","v":0},0,null,"I. Költségvetési évben esedékes kötelezettségek"]
[null,"     1. Tartós részesedések",{"$nulls":4},{"$f":"F14","v":0},null,"II. Költségvetési évet követően esedékes kötelezettségek"]
[null,"     2. Tartós hitelviszonyt megtestesítő értékpapírok",{"$nulls":6},"III. Kötelezettség jellegű sajátos elszámolások"]
[null,"     3. Befektetett pénzügyi eszközök értékhelyesbítése",{"$nulls":5},"I) Egyéb sajátos forrásoldali elszámolások"]
[null,"IV. Koncesszióba, vagyonkezelésbe adott eszközök",{"$nulls":5},"J) Passzív időbeli elhatárolások",null,0]
["B) Nemzeti vagyonba tartozó forgóeszközök",{"$nulls":4},{"$f":"F19+F20","v":0},{"$f":"SUM(C18:F18)","v":0}]
[null,"I. Készletek"]
[null,"II. Értékpapírok",{"$nulls":4},{"$f":"SUM(C20:F20)","v":0}]
["C) Pénzeszközök",{"$nulls":4},{"$f":"F22+F23+F24","v":1445777},{"$f":"SUM(C21:F21)","v":1445777}]
[null,"I. Hosszú lejáratú betétek"]
[null,"II. Pénztárak, csekkek, betétkönyvek",{"$nulls":4},0]
[null,"III. Forintszámlák",null,null,null,1445777,1445777]
[null,"IV. Devizaszámlák"]
["D) Követelések",{"$nulls":4},{"$f":"F27+F28+F29","v":0},{"$f":"G27+G28+G29","v":0}]
[null,"I. Költségvetési évben esedékes követelések",{"$nulls":4},0]
[null,"II. Költségvetési évet követően esedékes követelések",{"$nulls":4},0]
[null,"III. Követelés jellegű sajátos elszámolások",{"$nulls":4},0]
["E) Egyéb sajátos eszközoldali elszámolások",{"$nulls":5},0]
["F) Aktív időbeli elhatárolások",{"$nulls":5},0]
["Eszközök összesen",null,{"$f":"C5","v":0},{"$f":"D5","v":0},{"$f":"E5","v":0},{"$f":"F5+F21","v":1695777},{"$f":"G5+G18+G21+G26+G30+G31","v":1695777},"Források összesen",null,{"$f":"J5+J12+J17","v":1695777}]
["„0”-ra leírt eszközök",{"$nulls":4},435506,{"$f":"SUM(C33:F33)","v":435506}]
["Használatban lévő kisértékű immateriális javak állománya",{"$nulls":5},{"$f":"SUM(C34:F34)","v":0}]
["Használatban lévő kisértékű tárgyi eszközök állománya",{"$nulls":5},{"$f":"SUM(C35:F35)","v":0}]
["Használatban lévő készletek állománya"]
["Klebelsberg Központ és Szociális és Gyermekvédelmi Főigazgatóság részére vagyonkezelésbe adott ingatlanok ",{"$nulls":5},{"$f":"SUM(C37:F37)","v":0}]
["Nvt. 1. § (2) bekezdés g) és h) pontja szerinti kulturális javak és régészeti leletek állománya",{"$nulls":5},{"$f":"SUM(C38:F38)","v":0}]
["MÉRLEGEN KÍVÜLI ESZKÖZÖK ÖSSZESEN","MÉRLEGEN KÍVÜLI ESZKÖZÖK ÖSSZESEN",{"$f":"SUM(C33:C38)","v":0},{"$f":"SUM(D33:D38)","v":0},{"$f":"SUM(E33:E38)","v":0},{"$f":"SUM(F33:F38)","v":435506},{"$f":"SUM(G33:G38)","v":435506},"MÉRLEGEN KÍVÜLI FORRÁSOK ÖSSZESEN","MÉRLEGEN KÍVÜLI FORRÁSOK ÖSSZESEN",{"$f":"J33","v":0}]